bitfinex/quotes_ETHUSD_20230903
["timestamp","ask_amount","ask_price","bid_price","bid_amount"]
[1693777925460,6.9866,1639.4,1639.0,3.22883433]
[1693777925625,6.9866,1639.4,1639.1,1.06025422]
[1693777929430,6.9866,1639.4,1639.0,1.6279]
[1693777934967,6.15469012,1639.3,1639.0,1.6279]
[1693777935468,6.15469012,1639.3,1638.9,4.97495404]
[1693777935645,6.15469012,1639.3,1638.9,3.08185404]
[1693777935846,6.15469012,1639.3,1639.0,0.3081854]
[1693777937162,6.15469012,1639.3,1639.0,0.2581854]
[1693777939475,6.15469847,1639.2,1639.0,0.2581854]
[1693777939691,6.15469847,1639.1,1639.0,0.2581854]
[1693777940342,6.15469847,1639.3,1639.0,0.2581854]
[1693777940762,6.15469847,1639.3,1638.9,4.72575404]
[1693777944704,7.92609847,1639.3,1638.9,4.72575404]
[1693777944912,6.15469847,1639.2,1638.9,4.72575404]
[1693777947365,6.15469847,1639.2,1638.9,3.08185404]
[1693777954327,6.15469847,1639.2,1638.8,3.21460965]
[1693777954540,6.15469847,1639.2,1638.9,1.06024446]
[1693777954836,7.88979847,1639.2,1638.9,1.06024446]
[1693777955046,6.15469847,1639.1,1638.9,1.06024446]
[1693777960652,6.15476016,1639.0,1638.9,1.06024446]
[1693777960844,6.15476016,1639.1,1638.9,1.06024446]
[1693777961092,6.15476016,1639.0,1638.9,1.06024446]
[1693777961220,6.15476016,1639.0,1638.9,1.68641289]
[1693777961422,6.15476016,1639.1,1638.9,1.68641289]
[1693777961628,6.15476016,1639.1,1638.9,0.62616843]
[1693777965382,6.15476016,1639.1,1638.9,1.68640963]
[1693777965543,6.15476016,1639.1,1638.9,0.62616843]
[1693777965749,6.15476016,1639.1,1638.8,6.26306369]
[1693777965951,6.15476016,1639.1,1638.9,1.0602516]
[1693777977523,6.15476016,1639.1,1638.9,1.70109546]
[1693777977524,1.087,1639.0,1638.9,1.70109546]
[1693777977663,7.24176016,1639.0,1638.7,0.64084386]
[1693777977869,6.15476016,1638.9,1638.7,0.64084386]
[1693777978633,6.15549231,1638.8,1638.7,0.64084386]
[1693777978818,4.0614,1639.0,1638.7,0.64084386]
[1693777978968,6.15533423,1638.9,1638.7,0.64084386]
[1693777979404,6.15533423,1638.9,1638.7,1.70122157]
[1693777979612,6.15533423,1638.9,1638.8,1.06037771]
[1693777979817,6.15533423,1638.9,1638.7,0.64084386]
[1693777983514,6.15533423,1638.9,1638.6,1.60210965]
[1693777983745,6.15533423,1638.9,1638.6,5.74433098]
[1693777983917,6.15533423,1638.9,1638.7,1.06036729]
[1693777984100,7.87923423,1638.9,1638.7,1.06036729]
[1693777984299,1.7239,1638.9,1638.7,1.06036729]
[1693778014486,2.11967,1638.9,1638.7,1.06036729]
[1693778018483,1.7239,1638.9,1638.7,1.06036729]
[1693778019321,1.7239,1638.9,1638.6,3.72248501]
[1693778019619,1.7239,1638.9,1638.7,1.06038656]
[1693778022524,6.15553291,1638.8,1638.7,1.06038656]
[1693778023382,6.15553291,1638.8,1638.7,1.70101753]
[1693778023782,6.15553291,1638.8,1638.7,1.06038656]
[1693778024010,6.15553291,1638.8,1638.6,2.66196398]
[1693778024184,6.15553291,1638.8,1638.7,1.06038656]
[1693778024382,6.15553291,1638.8,1638.6,2.66196398]
[1693778028649,6.15553291,1638.8,1638.7,0.64063097]
[1693778038656,6.15550102,1638.8,1638.7,0.64063097]
[1693778041527,6.15548698,1638.8,1638.7,0.64063097]
[1693778051388,17.21429972,1638.8,1638.4,1.60290535]
[1693778051542,1.087,1638.5,1638.3,2.33174154]
[1693778051866,7.24248698,1638.4,1638.3,0.1]
[1693778052060,8.27492108,1638.4,1638.3,0.1]
[1693778052454,11.27492108,1638.4,1638.3,0.1]
[1693778055461,11.75492108,1638.4,1638.3,0.1]
[1693778056599,5.5994341,1638.4,1638.3,0.1]
[1693778065406,8.68128814,1638.4,1638.3,0.1]
[1693778066616,9.17128355,1638.4,1638.3,0.1]
[1693778085110,15.32934641,1638.4,1638.3,0.1]
[1693778087542,15.32939479,1638.4,1638.3,0.1]
[1693778091546,33.63992479,1638.4,1638.3,0.1]
[1693778092048,38.59839072,1638.4,1638.3,0.1]
[1693778102635,39.53606831,1638.4,1638.3,0.1]
[1693778102837,39.87730821,1638.4,1637.8,0.1]
[1693778103038,19.5139072,1638.3,1637.8,0.1]
[1693778103237,1.087,1637.9,1637.8,0.1]
[1693778103468,7.72511124,1637.9,1637.8,1.16110129]
[1693778103776,10.72511124,1637.9,1637.8,0.1]
[1693778103942,11.90632236,1637.9,1637.8,0.1]
[1693778104277,14.9881764,1637.9,1637.8,0.1]
[1693778107233,27.1989164,1637.9,1637.8,0.1]
[1693778107755,21.0935464,1637.9,1637.8,0.1]
[1693778107949,14.93543516,1637.9,1637.8,0.1]
[1693778108159,21.0954111,1637.9,1637.8,0.1]
[1693778112477,14.9900411,1637.9,1637.8,0.1]
[1693778112774,7.16885404,1637.9,1637.8,0.1]
[1693778114054,7.64885404,1637.9,1637.8,0.1]
[1693778115182,4.567,1637.9,1637.8,0.1]
[1693778116348,1.567,1637.9,1637.8,0.1]
[1693778117999,2.05299523,1637.9,1637.8,0.1]
[1693778122894,0.96599523,1637.9,1637.8,0.1]
[1693778128882,7.12549078,1637.9,1637.8,0.1]
[1693778129196,10.12549078,1637.9,1637.8,0.1]
[1693778132023,10.12895576,1637.9,1637.8,0.1]
[1693778142945,9.64895576,1637.9,1637.8,0.1]
[1693778163330,9.64861145,1637.9,1637.8,0.1]
[1693778183612,9.64869281,1637.9,1637.8,0.1]
[1693778201465,3.0,1637.7,1637.3,0.1]
[1693778201748,31.5814259,1637.6,1637.3,0.1]
[1693778201952,15.39808031,1637.5,1637.3,0.1]
[1693778202163,9.1592326,1637.4,1637.3,0.1]
[1693778202368,11.16618466,1637.4,1637.3,0.1]
[1693778202504,23.38066466,1637.4,1637.3,0.1]
[1693778203157,23.38386489,1637.4,1637.3,0.1]
[1693778203649,17.27662489,1637.4,1637.3,0.1]
[1693778205664,11.11739229,1637.4,1637.3,0.1]
[1693778215249,11.61628578,1637.4,1637.3,0.1]
[1693778216779,5.50904578,1637.4,1637.3,0.1]
[1693778221990,11.61628578,1637.4,1637.3,0.1]
[1693778223161,12.70328578,1637.4,1637.3,0.1]
[1693778223661,15.78513982,1637.4,1637.3,0.1]
[1693778228902,21.94658837,1637.4,1637.3,0.1]
[1693778259644,21.94710214,1637.4,1637.3,0.1]
[1693778278265,21.94711087,1637.4,1637.3,0.1]
[1693778284384,28.05435087,1637.4,1637.3,0.1]
[1693778286178,21.94711087,1637.4,1637.3,0.1]
[1693778312311,15.83987087,1637.4,1637.3,0.1]
[1693778314124,11.23106477,1637.4,1637.3,0.1]
[1693778314344,10.14406477,1637.4,1637.3,0.1]
[1693778320543,6.16517128,1637.4,1637.3,0.1]
[1693778321008,0.00320023,1637.4,1637.3,0.1]
[1693778322246,9.16197105,1637.5,1637.3,0.1]
[1693778322432,6.16197105,1637.4,1637.3,0.4762]
[1693778323139,6.16528569,1637.4,1637.3,0.4762]
[1693778326617,0.00331464,1637.4,1637.3,0.4762]
[1693778326817,0.00331464,1637.4,1637.3,1.53743156]
[1693778327251,0.49739336,1637.7,1637.3,1.53743156]
[1693778327447,6.16020618,1637.6,1637.3,0.4762]
[1693778327745,9.18773832,1638.1,1637.4,2.14815712]
[1693778327951,6.15999133,1638.0,1637.4,1.087]
[1693778328120,6.15999133,1638.0,1637.5,1.8955]
[1693778328121,9.16644946,1638.0,1637.5,1.8955]
[1693778328319,6.15999133,1637.9,1637.5,1.8955]
[1693778328515,3.0,1637.8,1637.5,1.8955]
[1693778328715,6.15999133,1637.7,1637.5,1.8955]
[1693778329227,3.0,1637.8,1637.4,2.6936]
[1693778329557,3.0,1638.0,1637.4,2.6936]
[1693778329751,6.15977107,1637.9,1637.5,1.949]
[1693778330254,3.0,1637.8,1637.5,1.949]
[1693778330618,3.0,1638.0,1637.5,1.949]
[1693778330951,6.1597837,1637.9,1637.5,1.949]
[1693778331117,3.0,1637.8,1637.5,3.5327]
[1693778331315,3.0,1637.8,1637.6,0.35327]
[1693778331515,3.0,1638.0,1637.6,0.35327]
[1693778331747,6.15978853,1637.9,1637.6,0.35327]
[1693778331909,3.0,1637.8,1637.6,0.35327]
[1693778332338,3.0,1638.0,1637.6,0.35327]
[1693778332540,6.15979091,1637.9,1637.6,0.35327]
[1693778333049,3.0,1637.8,1637.6,0.35327]
[1693778333453,3.0,1638.0,1637.6,0.35327]
[1693778333653,6.15979026,1637.9,1637.6,1.94607]
[1693778333842,3.0,1637.8,1637.6,1.94607]
[1693778334218,3.0,1638.0,1637.6,1.94607]
[1693778334554,6.15978283,1637.9,1637.6,1.94607]
[1693778334753,3.0,1637.8,1637.6,1.94607]
[1693778335132,3.0,1638.0,1637.6,1.94607]
[1693778335329,6.15978165,1637.9,1637.6,1.94607]
[1693778337033,3.0,1638.0,1637.6,1.94607]
[1693778337245,6.15958396,1637.9,1637.6,0.35327]
[1693778337445,4.75543056,1638.1,1637.6,0.35327]
[1693778337621,6.15957134,1638.0,1637.6,0.35327]
[1693778337822,3.0,1637.9,1637.6,1.91597]
[1693778338144,3.0,1637.9,1637.6,0.35327]
[1693778338345,4.75543056,1638.1,1637.6,0.35327]
[1693778338543,6.15959022,1638.0,1637.6,1.91597]
[1693778338733,3.0,1637.9,1637.6,1.91597]
[1693778338921,3.0,1637.9,1637.6,0.35327]
[1693778339252,4.75543056,1638.1,1637.6,0.35327]
[1693778339462,6.15959312,1638.0,1637.6,0.35327]
[1693778339624,3.0,1637.9,1637.6,0.35327]
[1693778340126,4.75543056,1638.1,1637.6,0.35327]
[1693778340326,6.15958631,1638.0,1637.6,0.35327]
[1693778340519,3.0,1637.9,1637.6,1.91597]
[1693778340738,3.0,1637.9,1637.6,0.35327]
[1693778340957,3.0,1638.0,1637.6,0.35327]
[1693778341260,6.15959527,1637.9,1637.6,0.35327]
[1693778358089,4.7439,1638.0,1637.6,0.35327]
[1693778358387,6.15958606,1637.9,1637.6,0.35327]
[1693778359487,6.15958606,1637.9,1637.7,1.06108571]
[1693778359786,6.15958606,1637.9,1637.6,0.99206865]
[1693778359988,6.15958606,1637.9,1637.7,1.06108421]
[1693778369366,6.15958606,1637.9,1637.6,1.95026663]
[1693778369701,6.15958606,1637.9,1637.7,1.06106455]
[1693778369910,6.15958606,1637.9,1637.7,1.67038307]
[1693778370199,6.15958606,1637.9,1637.7,0.60931852]
[1693778372969,6.15958606,1637.9,1637.8,1.06105819]
[1693778373213,9.15958606,1637.9,1637.8,1.06105819]
[1693778373368,9.15958606,1637.9,1637.7,0.60931852]
[1693778373572,6.15958606,1637.8,1637.7,0.60931852]
[1693778373794,6.15958606,1637.8,1637.7,1.67037981]
[1693778378318,6.15958606,1637.8,1637.7,0.60931852]
[1693778380819,6.15958606,1637.8,1637.7,4.75222757]
[1693778381205,6.15958606,1638.0,1637.7,4.75222757]
[1693778381413,6.15958606,1637.9,1637.7,3.08185404]
[1693778381626,6.15958606,1637.8,1637.7,3.08185404]
[1693778381949,6.15958606,1638.0,1637.7,6.05790319]
[1693778382141,6.15958606,1637.9,1637.7,4.99685404]
[1693778382303,6.15958606,1637.8,1637.7,4.99685404]
[1693778382504,6.15958606,1637.8,1637.7,4.14290341]
[1693778383005,6.15958606,1638.0,1637.7,4.14290341]
[1693778383206,6.15958606,1637.9,1637.7,4.99685404]
[1693778383391,6.15958606,1637.8,1637.7,4.99685404]
[1693778383588,6.15958606,1637.8,1637.7,6.05789819]
[1693778383804,6.15958606,1638.0,1637.7,4.14289819]
[1693778384091,6.15958606,1638.0,1637.8,0.41428982]
[1693778402533,6.15888281,1637.9,1637.8,0.41428982]
[1693778402712,6.15888281,1637.9,1637.8,1.47524989]
[1693778402912,6.15888281,1638.0,1637.8,1.47524989]
[1693778403111,6.15888281,1638.0,1637.8,0.41428982]
[1693778403711,6.15888281,1638.0,1637.8,1.47518552]
[1693778403939,6.15888281,1638.0,1637.8,0.41428982]
[1693778404434,6.15888281,1638.0,1637.7,5.76605269]
[1693778404650,6.15888281,1638.0,1637.8,1.06095823]
[1693778404869,9.00708281,1638.0,1637.6,1.59699663]
[1693778405155,6.15888281,1637.9,1637.6,1.59699663]
[1693778405318,7.24588281,1637.9,1637.6,0.63879865]
[1693778405525,6.15888281,1637.8,1637.6,0.63879865]
[1693778405817,4.818,1638.0,1637.6,1.03235632]
[1693778406028,6.15907778,1637.9,1637.7,1.06098274]
[1693778407622,6.15907778,1637.9,1637.6,0.63879865]
[1693778408753,7.95487778,1637.9,1637.6,0.63879865]
[1693778408959,6.15907778,1637.8,1637.6,0.63879865]
[1693778411855,6.15907778,1637.8,1637.5,2.65799758]
[1693778412023,6.15907778,1637.8,1637.6,1.06106704]
[1693778412227,6.15907778,1637.8,1637.5,0.63879865]
[1693778412427,6.15907778,1637.8,1637.5,1.69986548]
[1693778413858,6.15907778,1637.8,1637.5,2.65806346]
[1693778418252,6.15907778,1637.8,1637.6,1.69986548]
[1693778418556,2.8828,1637.9,1637.7,1.06106683]
[1693778418754,2.8828,1637.9,1637.5,1.59699663]
[1693778419066,2.8828,1637.9,1637.5,3.29645518]
[1693778419271,2.8828,1637.9,1637.6,1.06104916]
[1693778424639,2.8828,1637.9,1637.6,1.69984781]
[1693778424878,2.8828,1637.9,1637.7,1.06104916]
[1693778425036,2.8828,1637.9,1637.5,1.59699663]
[1693778427958,2.8828,1637.9,1637.5,1.990561]
[1693778428278,2.8828,1637.9,1637.6,1.06104974]
[1693778428967,2.8828,1637.9,1637.5,1.59699663]
[1693778433662,2.8828,1637.9,1637.5,0.63879865]
[1693778435571,2.8828,1637.9,1637.4,2.23579529]
[1693778435757,2.8828,1637.9,1637.5,0.64111416]
[1693778436280,2.8828,1637.9,1637.5,1.70217685]
[1693778436453,2.8828,1637.9,1637.5,2.25385449]
[1693778436653,2.8828,1637.9,1637.6,1.06106269]
[1693778444791,1.7958,1637.9,1637.6,1.70217685]
[1693778456930,3.0568,1638.0,1637.6,1.70217685]
[1693778457097,3.71103122,1638.0,1637.6,1.70217685]
[1693778457937,5.37643122,1638.0,1637.6,1.70217685]
[1693778465539,3.71103122,1638.0,1637.6,1.70217685]
[1693778472825,3.71103122,1638.0,1637.7,1.06106269]
[1693778473126,3.71103122,1638.0,1637.6,0.64111416]
[1693778473641,3.71103122,1638.0,1637.6,1.70213637]
[1693778474417,5.44163122,1638.0,1637.6,1.70213637]
[1693778478423,0.54416312,1637.9,1637.6,1.70213637]
[1693778478647,5.44163122,1638.0,1637.6,1.70213637]
[1693778478961,6.1593334,1637.9,1637.6,1.70213637]
[1693778480159,7.8755334,1637.9,1637.6,1.70213637]
[1693778480350,6.1593334,1637.8,1637.6,1.70213637]
[1693778489562,6.1593334,1637.8,1637.5,2.20971416]
[1693778489743,6.1593334,1637.8,1637.6,1.06109364]
[1693778489943,6.1593334,1637.8,1637.5,0.64111416]
[1693778490160,6.1593334,1637.8,1637.5,1.7022062]
[1693778491665,6.1593334,1637.8,1637.5,2.66387744]
[1693778492631,6.1593334,1637.8,1637.6,1.06109204]
[1693778492837,0.61593334,1637.7,1637.5,0.64111416]
[1693778493058,0.61593334,1637.7,1637.4,1.6027854]
[1693778493059,6.1593334,1637.6,1637.4,1.6027854]
[1693778493245,6.1593334,1637.6,1637.5,1.06114141]
[1693778494063,6.1593334,1637.6,1637.4,1.70225557]
[1693778495042,6.95023674,1637.6,1637.5,1.06114141]
[1693778495364,11.11909078,1637.6,1637.3,0.74111416]
[1693778495535,6.1593334,1637.5,1637.3,0.1]
[1693778495736,7.27124248,1637.5,1637.3,0.1]
[1693778495938,6.1593334,1637.4,1637.3,0.1]
[1693778496140,6.1593334,1637.4,1637.3,1.16126839]
[1693778496647,2.82980908,1637.5,1637.3,1.16126839]
[1693778496857,2.82980908,1637.5,1637.3,0.1]
[1693778499445,7.24790039,1637.4,1637.3,0.1]
[1693778499644,10.72790039,1637.4,1637.3,0.1]
[1693778499883,1.9199,1637.6,1637.3,0.1]
[1693778500064,1.6814,1637.7,1637.3,0.1]
[1693778500065,6.16102049,1637.4,1637.3,0.1]
[1693778500250,6.16102049,1637.5,1637.3,0.1]
[1693778500568,0.47788561,1637.7,1637.3,0.1]
[1693778500772,6.16041094,1637.6,1637.3,0.1]
[1693778501170,5.7684,1637.8,1637.3,0.1]
[1693778501478,9.16040188,1637.7,1637.3,1.7354]
[1693778501690,6.16040188,1637.6,1637.3,1.7354]
[1693778502944,6.16040188,1637.6,1637.3,0.1]
[1693778504676,1.57251224,1638.1,1637.3,5.97109144]
[1693778504846,1.57251224,1638.1,1637.4,2.7892374]
[1693778504847,6.15946797,1638.0,1637.4,2.7892374]
[1693778505185,6.15946797,1638.0,1637.5,1.06112324]
[1693778505491,6.15946797,1638.0,1637.5,1.43253698]
[1693778505786,6.15946797,1638.0,1637.5,2.01801374]
[1693778514285,6.15946797,1638.0,1637.6,1.06104264]
[1693778515258,6.15946797,1638.0,1637.5,2.01801374]
[1693778516989,7.92496797,1638.0,1637.5,2.01801374]
[1693778517186,6.15946797,1637.9,1637.5,2.01801374]
[1693778518394,6.15946797,1637.9,1637.6,1.06103116]
[1693778518597,6.15946797,1637.9,1637.6,1.36893565]
[1693778518796,6.15946797,1637.9,1637.6,0.30790449]
[1693778521396,6.15946797,1637.9,1637.5,1.6466]
[1693778525620,3.48551224,1638.1,1637.6,1.0609886]
[1693778525823,6.15891112,1638.0,1637.6,1.0609886]
[1693778526120,6.15891112,1638.0,1637.6,3.0306886]
[1693778526321,4.6891,1638.2,1637.6,1.9697]
[1693778526622,6.15888776,1638.1,1637.6,1.9697]
[1693778527495,6.15888776,1638.1,1637.7,1.06096534]
[1693778527894,6.15888776,1638.1,1637.6,1.9697]
[1693778529386,1.8046,1638.0,1637.6,1.9697]
[1693778529583,3.49658408,1638.2,1637.6,3.0567]
[1693778529813,6.15884499,1638.1,1637.7,1.36661589]
[1693778530118,7.96344499,1638.1,1637.7,0.30567]
[1693778530310,6.15884499,1638.0,1637.7,0.30567]
[1693778530883,3.49658408,1638.2,1637.7,0.30567]
[1693778531117,6.15866639,1638.1,1637.7,0.30567]
[1693778533687,6.15866639,1638.1,1637.7,3.38752404]
[1693778533892,6.15866639,1638.1,1637.8,0.3387524]
[1693778535729,2.30118408,1638.2,1637.8,0.3387524]
[1693778536035,2.30118408,1638.2,1637.8,2.3743524]
[1693778544458,5.9721,1638.5,1637.8,5.45620644]
[1693778544650,1.7616,1638.3,1637.9,1.06082156]
[1693778545549,1.7616,1638.3,1637.9,1.70092052]
[1693778548526,1.7616,1638.3,1637.9,2.66106897]
[1693778549522,1.7616,1638.3,1638.0,1.70092052]
[1693778549722,6.1578827,1638.2,1638.1,1.06082156]
[1693778549955,6.1578827,1638.2,1638.0,0.64009896]
[1693778551067,1.7616,1638.3,1638.0,0.64009896]
[1693778551263,6.15788197,1638.2,1638.0,0.64009896]
[1693778551436,6.15788197,1638.2,1638.1,1.06081603]
[1693778551635,6.15788197,1638.2,1637.9,2.66106344]
[1693778551957,6.15788197,1638.2,1638.0,1.06081603]
[1693778552122,6.15788197,1638.2,1638.1,1.06081603]
[1693778552522,6.15788197,1638.2,1638.0,0.64009896]
[1693778556655,1.7616,1638.3,1638.0,0.64009896]
[1693778557175,6.15793179,1638.2,1638.0,0.64009896]
[1693778557558,6.15793179,1638.2,1637.9,1.60024741]
[1693778557856,6.15793179,1638.2,1637.9,2.6610516]
[1693778559545,6.15793179,1638.2,1638.0,1.06080419]
[1693778559746,6.15793179,1638.2,1637.9,0.64009896]
[1693778559945,6.15793179,1638.2,1637.9,1.70090399]
[1693778561392,1.7616,1638.3,1637.9,1.70090399]
[1693778561686,6.15795998,1638.2,1637.9,2.31849976]
[1693778561849,6.15795998,1638.2,1638.0,1.06080503]
[1693778562489,1.7616,1638.3,1638.0,1.06080503]
[1693778563391,6.15795725,1638.2,1638.0,1.06080503]
[1693778563561,6.15795725,1638.2,1637.9,0.61759577]
[1693778563764,1.7616,1638.3,1637.9,0.61759577]
[1693778564462,6.15799604,1638.2,1637.7,1.60024741]
[1693778564791,6.15799604,1638.2,1637.6,1.28019793]
[1693778564792,1.087,1638.1,1637.6,0.64009896]
[1693778564992,1.087,1638.1,1637.6,1.70105347]
[1693778564993,7.24499604,1638.0,1637.6,1.70105347]
[1693778565179,2.1114996,1638.0,1637.7,1.06095451]
[1693778565386,2.1114996,1638.0,1637.5,1.60024741]
[1693778565387,1.087,1638.0,1637.5,1.60024741]
[1693778565569,1.087,1638.0,1637.6,0.64009896]
[1693778565889,1.087,1638.0,1637.5,2.02114225]
[1693778565890,3.0187,1638.0,1637.7,1.0609938]
[1693778566195,4.7982,1638.0,1637.5,1.60024741]
[1693778566394,4.7982,1638.0,1637.5,2.66124504]
[1693778566598,5.57802,1638.0,1637.5,2.66124504]
[1693778569097,4.49102,1638.0,1637.5,2.66124504]
[1693778569272,6.15910254,1637.9,1637.5,2.66124504]
[1693778570077,6.15910254,1637.9,1637.5,1.70109659]
[1693778570277,6.15910254,1637.9,1637.6,1.06099763]
[1693778570477,7.22411479,1637.9,1637.5,1.60024741]
[1693778570677,1.06501225,1637.9,1637.5,2.66125275]
[1693778570878,4.49102,1638.0,1637.6,1.06100534]
[1693778571091,6.15912288,1637.9,1637.5,1.60024741]
[1693778571265,6.15912288,1637.9,1637.6,1.06100802]
[1693778571466,6.15912288,1637.9,1637.5,1.60024741]
[1693778571699,6.15912288,1637.9,1637.5,1.70110469]
[1693778571899,6.15912288,1637.9,1637.5,2.66125314]
[1693778572061,6.15912288,1637.9,1637.5,1.70110469]
[1693778581141,6.15912288,1637.9,1637.5,4.78295873]
[1693778581317,6.15912288,1637.9,1637.6,1.06100573]
[1693778581820,6.15912288,1637.9,1637.6,1.70110469]
[1693778582318,6.15912288,1637.9,1637.7,1.06100573]
[1693778582520,1.7795,1638.0,1637.5,7.28210145]
[1693778582688,1.7795,1638.0,1637.6,1.06096168]
[1693778582886,1.7795,1638.0,1637.6,1.70106064]
[1693778583096,1.7795,1638.0,1637.6,3.63556064]
[1693778583309,1.7795,1638.0,1637.7,1.06096168]
[1693778583505,6.1589095,1637.9,1637.7,1.06096168]
[1693778583710,6.1589095,1637.9,1637.7,0.36355606]
[1693778584423,6.7987,1638.1,1637.7,0.36355606]
[1693778584602,6.15892795,1638.0,1637.6,1.9345]
[1693778584930,6.15892795,1638.0,1637.7,2.78803845]
[1693778585135,30.41,1638.2,1637.8,1.06093949]
[1693778585333,6.15823364,1638.1,1637.8,1.06093949]
[1693778585699,6.15823364,1638.1,1637.7,2.6505]
[1693778586329,6.15823364,1638.1,1637.8,1.06088102]
[1693778586499,6.15823364,1638.1,1637.8,1.49602902]
[1693778586701,6.15823364,1638.1,1637.8,0.435148]
[1693778586900,34.1369,1638.4,1637.8,0.435148]
[1693778587123,6.15837083,1638.3,1637.8,0.435148]
[1693778588232,1.8126,1638.2,1637.8,0.435148]
[1693778588538,6.15837083,1638.1,1637.8,0.435148]
[1693778608489,6.15837083,1638.1,1637.8,2.13611621]
[1693778608693,6.15837083,1638.1,1637.9,1.06086925]
[1693778609658,6.15837083,1638.1,1637.9,4.55220491]
[1693778609889,6.15837083,1638.1,1637.9,3.49133566]
[1693778611085,6.15837083,1638.1,1637.9,0.40948162]
[1693778611288,6.15837083,1638.1,1637.8,0.64009896]
[1693778611490,6.15837083,1638.1,1637.8,1.70096809]
[1693778611894,7.91407083,1638.1,1637.8,1.70096809]
[1693778612065,6.15837083,1638.0,1637.8,1.70096809]
[1693778620519,1.7557,1638.1,1637.8,1.70096809]
[1693778620694,6.15828199,1638.0,1637.8,1.70096809]
[1693778621986,6.15828199,1638.0,1637.7,5.18594741]
[1693778622182,6.15828199,1638.0,1637.8,1.06092374]
[1693778623408,6.15828199,1638.0,1637.8,1.7010227]
[1693778624991,6.15828199,1638.0,1637.7,6.68840145]
[1693778625193,6.15828199,1638.0,1637.8,1.06093965]
[1693778625606,6.15828199,1638.0,1637.8,1.70103861]
[1693778626123,6.15828199,1638.0,1637.8,1.06093965]
[1693778626330,6.15828199,1638.0,1637.9,1.06093965]
[1693778626696,6.15828199,1638.0,1637.8,1.70103861]
[1693778626906,6.15828199,1638.0,1637.9,1.06093965]
[1693778627312,6.15828199,1638.0,1637.7,6.04830249]
[1693778627313,6.15828199,1638.0,1637.7,5.08815404]
[1693778627520,6.15828199,1638.0,1637.8,1.70195232]
[1693778629030,6.15828199,1638.0,1637.9,1.06091907]
[1693778629699,6.15828199,1638.0,1637.8,1.70195232]
[1693778637112,6.15828199,1638.0,1637.8,2.6635022]
[1693778637715,6.15828199,1638.0,1637.9,1.06091907]
[1693778637916,6.15828199,1638.0,1637.8,2.6635022]
[1693778638140,6.15828199,1638.0,1637.9,1.06091907]
[1693778638618,6.15828199,1638.0,1637.8,2.6635022]
[1693778641429,1.7557,1638.1,1637.8,2.6635022]
[1693778641637,6.15839012,1637.9,1637.8,2.6635022]
[1693778642243,1.7557,1638.1,1637.8,2.6635022]
[1693778642244,6.15839012,1638.0,1637.8,2.6635022]
[1693778642447,6.15839012,1637.9,1637.8,2.6635022]
[1693778642642,6.15839012,1638.0,1637.8,2.6635022]
[1693778642822,6.15839012,1637.9,1637.8,2.6635022]
[1693778643027,6.15839012,1638.0,1637.8,2.6635022]
[1693778644466,6.15839308,1637.9,1637.8,2.6635022]
[1693778644831,6.15839308,1638.0,1637.8,2.6635022]
[1693778645063,6.15839308,1637.9,1637.8,2.6635022]
[1693778645266,6.15839308,1638.0,1637.8,2.6635022]
[1693778646558,6.15839308,1638.0,1637.8,1.70195232]
[1693778646758,6.15839308,1638.0,1637.9,1.06091907]
[1693778647161,6.15839308,1638.0,1637.8,1.70195232]
[1693778647344,6.15839308,1638.0,1637.9,1.06091907]
[1693778647538,6.15839308,1638.0,1637.7,7.33177042]
[1693778647539,6.15839308,1638.0,1637.7,5.08815404]
[1693778647862,6.15839308,1638.0,1637.8,1.70200182]
[1693778651072,6.15839308,1638.0,1637.7,7.33201664]
[1693778651073,6.15839308,1638.0,1637.7,5.08815404]
[1693778651252,6.15839308,1638.0,1637.8,1.70199994]
[1693778663190,6.15839308,1638.0,1637.8,2.66365104]
[1693778664400,6.15839308,1638.0,1637.9,1.06089921]
[1693778664893,6.15839308,1638.0,1637.8,1.70199994]
[1693778665260,6.15857175,1637.9,1637.8,1.70199994]
[1693778665758,6.15857175,1638.0,1637.8,1.70199994]
[1693778665994,6.15857175,1637.9,1637.8,1.70199994]
[1693778666392,6.15857175,1638.0,1637.8,1.70199994]
[1693778666694,6.15857175,1638.0,1637.8,2.66365104]
[1693778673401,6.15857175,1638.0,1637.9,1.06089921]
[1693778673566,6.15857175,1638.0,1637.8,1.70199994]
[1693778673766,6.15857175,1638.0,1637.9,1.06089921]
[1693778674297,6.15857175,1638.0,1637.8,1.70199994]
[1693778675118,6.15857175,1638.0,1637.8,2.66365104]
[1693778678725,6.15857175,1638.0,1637.9,1.06089921]
[1693778678888,6.15857175,1638.0,1637.8,2.66365104]
[1693778679088,6.15857175,1638.0,1637.9,1.70199994]
[1693778679550,6.15857175,1638.0,1637.9,0.64110073]
[1693778690431,6.15841291,1638.0,1637.9,0.64110073]
[1693778696751,6.15841291,1638.0,1637.9,0.64137314]
[1693778724877,6.15841291,1638.1,1637.9,0.64137314]
[1693778732269,6.15841291,1638.1,1637.9,1.70225576]
[1693778732470,6.15841291,1638.1,1638.0,1.06088262]
[1693778732870,6.15841291,1638.1,1637.9,0.64137314]
[1693778736048,6.15841291,1638.1,1637.9,1.70225576]
[1693778736249,6.15841291,1638.1,1638.0,1.06088262]
[1693778736449,6.15841291,1638.1,1637.9,0.64137314]
[1693778736749,6.16238672,1638.1,1637.9,0.64137314]
[1693778740465,6.16238672,1638.1,1637.9,1.03607931]
[1693778740665,6.16238672,1638.1,1638.0,1.06088262]
[1693778743657,6.16238672,1638.1,1637.9,1.70225576]
[1693778743989,6.16238672,1638.1,1638.0,1.06088262]
[1693778744184,6.16238672,1638.1,1637.9,1.70225576]
[1693778754220,6.16238672,1638.1,1637.8,3.17633285]
[1693778754515,6.16238672,1638.1,1637.9,1.06088964]
[1693778758046,6.16238672,1638.1,1637.8,1.60343285]
[1693778758209,7.99118672,1638.1,1637.8,2.66432526]
[1693778758404,6.15841291,1638.0,1637.9,1.06089241]
[1693778758611,6.16238151,1638.0,1637.8,1.70226555]
[1693778758911,6.16238151,1638.0,1637.9,1.06089241]
[1693778759424,6.16238151,1638.0,1637.8,1.70226555]
[1693778759612,6.16238151,1638.0,1637.9,1.06089241]
[1693778760008,6.16238151,1638.0,1637.8,1.70226555]
[1693778764459,6.15856355,1637.9,1637.8,1.70226555]
[1693778764615,0.00396084,1637.9,1637.8,1.70226555]
[1693778768852,6.16252921,1637.9,1637.8,1.70226555]
[1693778769364,0.00396084,1637.9,1637.8,1.70226555]
[1693778797039,0.00396084,1637.9,1637.7,4.25110599]
[1693778797040,0.00396084,1637.9,1637.7,2.0063]
[1693778797186,0.00396084,1637.9,1637.8,0.64129146]